[Event "26th OIBM 2023"]
[Site "Gmund am Tegernsee"]
[Date "2023.11.04"]
[Round "8.2"]
[White "Stocek, Jiri"]
[Black "Gopal G.N."]
[Result "1/2-1/2"]
[ECO "D52"]
[WhiteElo "2535"]
[BlackElo "2573"]
[Annotator "TA"]
[PlyCount "93"]
[EventDate "2023.10.04"]
[EventType "swiss"]
[EventCountry "GER"]
[SourceTitle "playchess.com"]
[Source "ChessBase"]
[SourceQuality "1"]
[TimeControl "40/5400+30:1800+30"]

{[%evp 13,93,22,25,25,30,20,20,18,20,18,34,33,35,4,4,22,19,-6,20,-6,0,0,0,0,0,0,0,0,0,0,0,0,21,0,0,0,9,0,19,20,22,20,38,9,33,20,19,19,34,7,7,0,20,10,34,7,33,16,58,9,43,29,71,27,29,85,79,14,15,0,66,69,85,14,73,0,0,0,73,0,0,0]} 1. Nf3 {[%emt 0:01:55]} d5 {[%emt 0:00:21]} 2. d4 {[%emt 0:03:20]} Nf6 {[%emt 0:00:12]} 3. c4 {[%emt 0:00:10]} c6 {[%emt 0:00:04]} 4. Nc3 {[%emt 0:00:16]} e6 {[%emt 0:00:05]} 5. Bg5 {[%emt 0:00:31]} Nbd7 {[%emt 0:00:16]} 6. e3 {[%emt 0:01:13]} Qa5 {[%emt 0:02:05]} 7. cxd5 {[%emt 0:00:50] seems to push 7.Nd2 aside.} Nxd5 {[%emt 0:00:46]} 8. Rc1 {[%emt 0:01:29][%cal Ba1c1,Bc1c2,Bc2d2,Bd2d1][%mdl 32] D52: Queen's Gambit Declined: Cambridge Springs Variation.} h6 {[%emt 0:02:09]} 9. Bh4 {[%emt 0:01:21]} Nxc3 {[%emt 0:02:17]} 10. bxc3 {[%emt 0:00:08]} Ba3 {[%emt 0:00:50]} 11. Rc2 {[%emt 0:00:14]} b6 {[%emt 0:00:38]} 12. Nd2 {[%emt 0:08:57]} ({But not} 12. Ne5 Nxe5 13. dxe5 Bb7 $15) 12... Ba6 {[%emt 0:19:22] [#] Wards off Bd3} 13. Nc4 $146 {[%emt 0:04:04]} ({Predecessor:} 13. c4 O-O 14. Bd3 c5 15. O-O cxd4 16. exd4 Rfe8 17. Qe2 Rac8 18. c5 Qa4 19. Bxa6 Qxc2 20. Bxc8 Rxc8 {1-0 Tan,Z (2514)-Goryachkina,A (2584) Candidates (Women) Pool-B 2022 (2.4)}) 13... Qa4 {[%emt 0:11:45]} 14. Rd2 {[%emt 0:01:05]} Qxd1+ {[%emt 0:00:40]} 15. Rxd1 {[%emt 0:09:52]} (15. Kxd1 $5 {[%cal Rc4a3]} Be7 16. Nd6+ {[%mdl 64] Discovered Attack} Bxd6 17. Bxa6 $11) 15... Be7 {[%emt 0:03:17]} 16. Bg3 {[%emt 0:00:29]} (16. Nd6+ $5 Bxd6 17. Bxa6 $11) 16... c5 {[%emt 0:12:19]} 17. Nd6+ {[%emt 0:05:44][%mdl 64] Discovered Attack} Bxd6 {[%emt 0:00:05]} 18. Bxa6 {[%emt 0:00:05]} Bxg3 {[%emt 0:00:28]} 19. hxg3 {[%emt 0:00:06]} Ke7 {[%emt 0:00:33]} 20. Ke2 {[%emt 0:02:13]} Rhd8 {[%emt 0:01:09]} 21. f3 {[%emt 0:04:11]} Rab8 {[%emt 0:05:08]} 22. a4 {[%emt 0:04:44]} Nf6 {[%emt 0:03:20]} 23. Rb1 {[%emt 0:04:22]} Nd5 {[%emt 0:07:32]} 24. Rhc1 {[%emt 0:05:53]} Nc7 {[%emt 0:01:29]} 25. Bd3 {[%emt 0:06:56]} cxd4 {[%emt 0:02:11]} 26. cxd4 {[%emt 0:00:57]} Rdc8 {[%emt 0:00:10]} 27. e4 {[%emt 0:01:30]} Ne8 {[%emt 0:02:06]} 28. Ke3 {[%emt 0:02:25]} Kd8 {[%emt 0:09:58]} 29. Bb5 {[%emt 0:04:05]} Rxc1 {[%emt 0:04:30]} 30. Rxc1 $11 {[%emt 0:00:27][%mdl 4096] Endgame KRB-KRN} Rb7 {[%emt 0:00:59]} 31. Bc6 {[%emt 0:05:48]} Rc7 {[%emt 0:00:21]} 32. e5 {[%emt 0:00:39]} Rc8 {[%emt 0:01:09]} 33. g4 {[%emt 0:03:02]} Nc7 {[%emt 0:00:44]} 34. Rb1 {[%emt 0:02:18]} Ke7 {[%emt 0:02:05]} (34... Ne8 $5 {[%cal Rc8c6]} 35. Be4 Nc7 $14) 35. Kd3 {[%emt 0:01:22][%cal Oa4a5]} Rd8 {[%emt 0:02:41]} 36. g3 {[%emt 0:02:46]} (36. a5 $14 {deserves consideration.}) 36... Nd5 {[%emt 0:01:35]} (36... f6 $5 {[%cal Rf6e5]}) 37. f4 {[%emt 0:06:22]} g6 {[%emt 0:02:36]} 38. Rb3 {[%emt 0:02:46][%cal Oa4a5]} h5 {[%emt 0:00:30]} 39. gxh5 {[%emt 0:03:02]} gxh5 {[%emt 0:00:01] [#]} 40. Ke4 {[%emt 0:01:09]} (40. a5 $1 $16) 40... f5+ {[%emt 0:01:26]} 41. Kf3 {[%emt 0:04:32][%cal Oa4a5]} Nc7 {[%emt 0:05:36]} (41... Kf7 $11) 42. Rb4 $14 {[%emt 0:06:22]} Rh8 {[%emt 0:13:36] [#]} 43. Rb2 {[%emt 0:05:05]} (43. a5 $1 $16 {[%cal Ra5b6]}) 43... Rc8 {[%emt 0:03:23]} (43... Rd8 $11 {keeps the balance.}) 44. Bb7 {[%emt 0:04:32] White is more active.} (44. Rc2 $5 {[%cal Rc6b7]} Na6 45. Rc4 $14) 44... Rb8 {[%emt 0:00:13]} 45. Bc6 {[%emt 0:00:04]} Rc8 {[%emt 0:00:04]} 46. Bb7 {[%emt 0:00:21]} (46. Rc2 $16 {Hoping for Bb7.} Nd5 47. Rc4) 46... Rb8 $11 {[%emt 0:00:01]} 47. Bc6 {[%emt 0:00:04] Weighted Error Value: White=0.18 (very precise) /Black=0.14 (very precise)} 1/2-1/2

[Event "26th OIBM 2023"]
[Site "Gmund am Tegernsee"]
[Date "2023.11.04"]
[Round "8.3"]
[White "Vogel, Roven"]
[Black "Schmider, Niklas"]
[Result "1/2-1/2"]
[ECO "A13"]
[WhiteElo "2471"]
[BlackElo "2395"]
[Annotator "ChessBase"]
[PlyCount "66"]
[EventDate "2023.10.04"]
[EventType "swiss"]
[EventCountry "GER"]
[SourceTitle "playchess.com"]
[Source "ChessBase"]
[SourceQuality "1"]
[TimeControl "40/5400+30:1800+30"]

1. Nf3 {[%emt 0:00:04]} Nf6 {[%emt 0:00:10]} 2. c4 {[%emt 0:00:06]} e6 {[%emt 0:00:18]} 3. b3 {[%emt 0:00:47]} d5 {[%emt 0:00:18]} 4. Bb2 {[%emt 0:00:20]} c5 {[%emt 0:00:14]} 5. e3 {[%emt 0:00:08]} Nc6 {[%emt 0:00:14]} 6. cxd5 {[%emt 0:00:08]} exd5 {[%emt 0:00:09]} 7. Nc3 {[%emt 0:00:31]} d4 {[%emt 0:18:33]} 8. Na4 {[%emt 0:01:17]} d3 {[%emt 0:28:44]} 9. Bc3 {[%emt 0:01:22]} Bf5 {[%emt 0:04:26]} 10. Nb2 {[%emt 0:03:21]} Qd6 {[%emt 0:09:06]} 11. Nh4 {[%emt 0:04:09]} Be4 {[%emt 0:01:30]} 12. f3 {[%emt 0:02:02]} Bg6 {[%emt 0:00:30]} 13. g3 {[%emt 0:09:26]} O-O-O {[%emt 0:07:43]} 14. Nxg6 {[%emt 0:06:24]} hxg6 {[%emt 0:00:07]} 15. Nxd3 {[%emt 0:00:22]} Nd5 {[%emt 0:02:10]} 16. Bb2 {[%emt 0:05:27]} Qe6 {[%emt 0:00:05]} 17. Nf4 {[%emt 0:09:43]} Nxf4 {[%emt 0:01:24]} 18. gxf4 {[%emt 0:00:06]} Be7 {[%emt 0:00:09]} 19. Bc4 {[%emt 0:04:24]} Bh4+ {[%emt 0:02:40]} 20. Ke2 {[%emt 0:00:10]} Qh3 {[%emt 0:00:27]} 21. Qg1 {[%emt 0:03:00]} Qd7 {[%emt 0:01:50]} 22. Bc3 {[%emt 0:05:02]} b5 {[%emt 0:05:03]} 23. Bxb5 {[%emt 0:00:05]} Nd4+ {[%emt 0:00:03]} 24. exd4 {[%emt 0:00:07]} Qxb5+ {[%emt 0:00:03]} 25. Kd1 {[%emt 0:02:53]} cxd4 {[%emt 0:00:18]} 26. Bxd4 {[%emt 0:00:38]} Qd3 {[%emt 0:00:39]} 27. Rc1+ {[%emt 0:02:32]} Kb7 {[%emt 0:00:39]} 28. Bc3 {[%emt 0:04:34]} Bf6 {[%emt 0:04:48]} 29. Qf1 {[%emt 0:06:14]} Qxf1+ 30. Rxf1 {[%emt 0:00:01]} Rxh2 {[%emt 0:06:27]} 31. Bb4 {[%emt 0:01:33]} Rd5 {[%emt 0:00:56]} 32. Rc2 {[%emt 0:01:02]} a5 {[%emt 0:00:13]} 33. Bc5 {[%emt 0:01:03]} Bd4 {[%emt 0:05:01]} 1/2-1/2

[Event "26th OIBM 2023"]
[Site "Gmund am Tegernsee"]
[Date "2023.11.04"]
[Round "8.4"]
[White "Lagarde, Maxime"]
[Black "Schachinger, Mario"]
[Result "1-0"]
[ECO "B40"]
[WhiteElo "2626"]
[BlackElo "2385"]
[Annotator "TA"]
[PlyCount "97"]
[EventDate "2023.10.04"]
[EventType "swiss"]
[EventCountry "GER"]
[SourceTitle "playchess.com"]
[Source "ChessBase"]
[SourceQuality "1"]
[TimeControl "40/5400+30:1800+30"]

{[%evp 9,97,0,28,-5,0,-45,-13,-26,-22,-33,-33,-20,-34,-34,-4,-81,41,36,52,38,90,77,145,133,138,130,127,106,91,83,149,173,170,166,190,187,185,72,78,-7,-17,-3,-2,-14,-7,-7,30,30,30,30,30,30,30,30,37,37,37,37,37,38,38,14,109,123,152,134,134,134,207,167,217,216,579,577,578,547,1081,958,1230,1200,1008,1000,992,904,1846,1883,29981,29982,29981,29982]} 1. e4 {[%emt 0:00:02]} c5 {[%emt 0:00:47]} 2. Nf3 {[%emt 0:00:05]} e6 {[%emt 0:00:10]} 3. b3 {[%emt 0:00:43]} b6 {[%emt 0:00:16]} 4. Bb2 {[%emt 0:00:26]} Bb7 {[%emt 0:00:10]} 5. Nc3 {[%emt 0:00:04]} Nf6 {[%emt 0:01:36]} 6. Qe2 {[%emt 0:00:07] B40: Sicilian: 2...e6, Unusual lines.} (6. e5 $5 {[%cal Re5f6]} Nd5 7. Nxd5 Bxd5 8. Bb5 $11) 6... Nc6 {[%emt 0:01:40]} 7. h3 {[%emt 0:27:03]} (7. e5 $5 {[%cal Re5f6]} Ng4 8. O-O-O $11) 7... e5 {[%emt 0:02:40]} 8. O-O-O {[%emt 0:03:09] The position is equal.} d6 {[%emt 0:05:12] [#]} 9. Kb1 $146 {[%emt 0:06:04]} ({Predecessor:} 9. Qe3 Be7 10. Bc4 Nd4 11. d3 O-O 12. Nd5 b5 13. Nxf6+ Bxf6 14. Bd5 Bxd5 15. exd5 {0-1 Przybylski,W (2321)-Rychagov,A (2545) Titled Tuesday intern op 27th Oct blitz 2020 (9)}) 9... g6 {[%emt 0:02:34]} 10. Nh2 {[%emt 0:03:42]} Bg7 {[%emt 0:03:26]} 11. Ng4 {[%emt 0:00:15]} Nd4 {[%emt 0:15:22]} (11... Nh5 {simplifies} 12. Qe1 a6 13. Ne3 O-O) 12. Qe3 {[%emt 0:01:55]} (12. Nxf6+ $11 Bxf6 13. Qe1) 12... h5 {[%emt 0:02:35]} (12... Nh5 $17) 13. Nxf6+ $14 {[%emt 0:00:23]} Bxf6 {[%emt 0:00:09]} 14. Bc4 {[%emt 0:00:22]} a6 {[%emt 0:05:01]} ({Black should try} 14... Bg5 $14 15. Qd3 O-O) 15. Bd5 {[%emt 0:04:23]} Nc6 {[%emt 0:00:15]} (15... Bg5 $142 16. Qd3 Nc6) 16. f4 $16 {[%emt 0:01:16] White has more active pieces. The black rooks are badly placed.} Qe7 {[%emt 0:03:39]} 17. Rhf1 {[%emt 0:00:54]} Rf8 {[%emt 0:03:09]} 18. Bxc6+ {[%emt 0:11:56]} Bxc6 {[%emt 0:00:12]} 19. Qd3 {[%emt 0:00:04]} exf4 {[%emt 0:10:51]} (19... O-O-O $142) 20. Nd5 {[%emt 0:02:27]} Bxd5 {[%emt 0:00:40]} 21. Qxd5 {[%emt 0:00:13]} Rb8 {[%emt 0:01:04]} 22. Qc6+ {[%emt 0:07:50]} (22. Rxf4 $6 Be5 23. Bxe5 dxe5 $16) 22... Kd8 {[%emt 0:00:09][%cal Be8d8,Bd8c8,Bc8b7][%mdl 32]} 23. e5 {[%emt 0:13:38]} (23. Rxf4 Bxb2 24. Kxb2 Qe5+ 25. d4 cxd4 $14) (23. Bxf6 $18 {and White stays clearly on top.} Qxf6 24. e5) 23... Bxe5 {[%emt 0:18:40]} 24. Bxe5 {[%emt 0:00:11]} ({White should play} 24. d4 $1 $16 {[%cal Rd4e5]} cxd4 25. Bxd4) 24... dxe5 $11 {[%emt 0:00:28]} (24... Qxe5 $2 25. Rde1 Qf6 26. Re4 $18) 25. Rf3 {[%emt 0:00:18] Rd3+ would kill now.} Qc7 $1 {[%emt 0:00:27]} (25... Qe6 $2 26. Rd3+ Ke7 27. Qc7+ Kf6 28. Rd6 $18) 26. Qf6+ {[%emt 0:04:12]} (26. Rd3+ Kc8 27. Qf6 Kb7 $17) 26... Kc8 {[%emt 0:01:31] ...Re8 would be deadly.} 27. Re1 {[%emt 0:00:12]} Kb7 {[%emt 0:03:02]} 28. Rxe5 {[%emt 0:00:18]} Rbe8 {[%emt 0:00:28] Inhibits Re7.} 29. Rxe8 {[%emt 0:01:11]} Rxe8 {[%emt 0:00:03]} 30. Rxf4 {[%emt 0:00:23][%mdl 4096] Endgame KQR-KQR} Re7 {[%emt 0:00:40]} 31. d3 {[%emt 0:02:19][%cal Bd2d3,Bd3d4,Bd4c5][%mdl 32]} a5 {[%emt 0:03:59]} 32. a4 {[%emt 0:00:14]} Qd7 {[%emt 0:01:43]} 33. g4 {[%emt 0:01:17]} hxg4 {[%emt 0:00:33]} 34. hxg4 {[%emt 0:00:03]} Kc7 {[%emt 0:01:01]} 35. d4 {[%emt 0:02:24]} Qd6 {[%emt 0:05:48]} (35... cxd4 $11 {keeps the balance.} 36. Rxd4 Qe8) 36. dxc5 $1 $16 {[%emt 0:00:44]} Qxf6 {[%emt 0:00:57]} 37. Rxf6 {[%emt 0:00:06]} bxc5 {[%emt 0:00:06][%cal Oc5c4] KR-KR} 38. Kb2 $1 {[%emt 0:02:03]} Kd7 {[%emt 0:02:06] [#]} (38... c4 $16 {is a better defense.}) 39. Kc3 $1 $18 {[%emt 0:02:58]} Ke8 {[%emt 0:01:00] [#]} (39... Re3+ $142 40. Kd2 Rg3) 40. Ra6 $1 {[%emt 0:01:38]} Re4 $2 {[%emt 0:03:55]} (40... Re3+ 41. Kc4 Rg3 42. Rxa5 (42. Kxc5 Rxg4 43. Kb6 f5 $16) 42... Rxg4+ 43. Kd5 (43. Kxc5 $2 {is the wrong capture.} Rg5+ 44. Kd4 Rxa5 $19) 43... Rf4 44. Ra8+ (44. Kxc5 $2 {too greedy.} Rf5+ 45. Kd4 Rxa5 $19) (44. Rxc5 Kd7 $16) 44... Kd7 45. Kxc5 Kc7 46. Ra7+ Kc8) 41. Rxa5 {[%emt 0:30:18]} Rxg4 {[%emt 0:30:06]} 42. Rxc5 {[%emt 0:00:14]} f5 {[%emt 0:00:33]} 43. a5 {[%emt 0:00:25][%cal Ba4a5,Ba5a6][%mdl 32] Threatening mate with a6.} Rg1 {[%emt 0:00:07]} 44. Kb2 {[%emt 0:03:00]} Rd1 {[%emt 0:00:37]} 45. a6 {[%emt 0:00:31] Intending a7 and mate.} Rd7 {[%emt 0:00:07]} 46. b4 {[%emt 0:00:00][%cal Bb3b4,Bb4b5,Bb5b6][%mdl 32] aiming for b5.} f4 {[%emt 0:00:00]} 47. Ra5 {[%emt 0:00:00] White wants to mate with b5.} Ra7 {[%emt 0:00:00]} 48. b5 {[%emt 0:00:00]} f3 {[%emt 0:00:00]} 49. b6 {[%emt 0:03:00] Weighted Error Value: White=0.16 (very precise) /Black=0.48} 1-0

[Event "26th OIBM 2023"]
[Site "Gmund am Tegernsee"]
[Date "2023.11.04"]
[Round "8.5"]
[White "Mastrovasilis, Dimitrios"]
[Black "Morawietz, Dieter"]
[Result "1/2-1/2"]
[ECO "C15"]
[WhiteElo "2573"]
[BlackElo "2378"]
[Annotator "TA"]
[PlyCount "142"]
[EventDate "2023.10.04"]
[EventType "swiss"]
[EventCountry "GER"]
[SourceTitle "playchess.com"]
[Source "ChessBase"]
[SourceQuality "1"]
[TimeControl "40/5400+30:1800+30"]

{[%evp 13,142,11,15,16,27,0,9,0,24,35,37,7,47,35,56,32,47,-12,60,56,124,10,8,3,3,25,8,3,3,10,10,10,124,16,54,5,39,0,49,13,19,-24,0,-46,-47,-61,-59,-58,-57,-74,-45,-91,-99,-94,-97,-102,-87,-79,-89,-185,-143,-123,-104,-184,-184,-184,-184,-273,-218,-238,-170,-185,0,0,0,0,0,0,0,0,0,0,45,45,45,45,45,45,45,45,45,45,45,45,45,45,45,45,45,45,45,39,40,8,8,0,0,0,114,114,29954,2401,29979,29980,29962,31,31,104,279,0,0,0,0,0,0,0,0,0,0,-8,0]} 1. e4 {[%emt 0:01:34]} e6 {[%emt 0:00:09]} 2. d4 {[%emt 0:00:31]} d5 {[%emt 0:00:10]} 3. Nc3 {[%emt 0:00:29]} Bb4 {[%emt 0:00:12]} 4. Nge2 {[%emt 0:00:25]} dxe4 {[%emt 0:00:42]} 5. a3 {[%emt 0:00:25]} Be7 {[%emt 0:01:17]} 6. Nxe4 {[%emt 0:00:40]} Nf6 {[%emt 0:01:48]} 7. Nxf6+ $1 {[%emt 0:02:53][%mdl 4] is now more promising than 7.N2g3.} Bxf6 {[%emt 0:00:10]} 8. Be3 {[%emt 0:00:06] C15: French: 3 Nc3 Bb4: Unusual White 4th moves.} b6 {[%emt 0:05:15]} 9. Qd2 {[%emt 0:01:12]} Bb7 {[%emt 0:01:53]} 10. O-O-O {[%emt 0:01:09]} (10. Qb4 Nc6 11. Qc4 Qd7 $17) 10... O-O {[%emt 0:00:58]} 11. Nf4 {[%emt 0:01:13]} Nd7 {[%emt 0:10:27]} 12. Kb1 {[%emt 0:04:07] [#]} g6 $146 {[%emt 0:18:33]} ({Predecessor:} 12... Be7 13. f3 Nf6 14. h4 a5 15. h5 a4 16. c4 Ra5 17. Qc2 h6 18. Be2 Qa8 {1-0 Shyam,N (2434)-Krishna,C (2481) Commonwealth-ch 2019 (9)}) 13. Bc4 {[%emt 0:22:05][%cal Oh2h4]} Re8 {[%emt 0:00:10]} (13... g5 $2 14. Nh5 $18) 14. Bb3 {[%emt 0:11:35]} Qe7 {[%emt 0:11:11] [#]} (14... g5 15. Nh5 $16) 15. h4 {[%emt 0:17:59]} Bxh4 {[%emt 0:03:42]} (15... Rad8 $1 $11) 16. d5 $1 $14 {[%emt 0:04:00]} e5 {[%emt 0:11:11]} (16... Nf8 $1 $14) 17. d6 {[%emt 0:02:57]} (17. Nh3 $1 $16) 17... cxd6 $11 {[%emt 0:00:52]} 18. Nd5 {[%emt 0:01:03]} Bxd5 {[%emt 0:02:37]} 19. Bxd5 {[%emt 0:00:50]} Rac8 {[%emt 0:02:15]} 20. Rh3 {[%emt 0:05:09] Rdh1 would be deadly.} Bf6 {[%emt 0:01:08]} 21. Rdh1 {[%emt 0:00:32]} Nf8 {[%emt 0:09:48]} 22. g4 {[%emt 0:01:36]} e4 {[%emt 0:00:29]} (22... Bg7 $11) 23. g5 {[%emt 0:02:07] White is more active.} (23. f3 $16) 23... Bg7 {[%emt 0:04:10]} 24. Rh4 {[%emt 0:00:46]} (24. f3 $1 $14 {should be considered.}) 24... Qc7 {[%emt 0:03:20]} (24... Qd7 $5 {[%cal Re8e5]}) 25. c3 {[%emt 0:04:16]} b5 {[%emt 0:02:09]} (25... Re5 $11 {might be stronger.}) 26. Qc2 {[%emt 0:04:21]} Re5 {[%emt 0:02:14]} 27. Qb3 {[%emt 0:00:23]} Qd7 {[%emt 0:00:25]} 28. Bxe4 {[%emt 0:04:51] This pair of bishops is nice.} (28. Rxe4 $2 Qf5 29. Rhh4 Rxd5 $19) (28. Bf4 $11 {deserves consideration.}) 28... Rc4 $15 {[%emt 0:02:44]} 29. Bd3 {[%emt 0:00:29]} Rxh4 {[%emt 0:00:12]} 30. Rxh4 {[%emt 0:00:02]} Ne6 {[%emt 0:00:45]} 31. a4 {[%emt 0:01:58][%cal Rd3b5]} bxa4 {[%emt 0:02:07]} (31... a6 $5 {[%cal Re6c5]} 32. Qd1 Nxg5 $15) 32. Rxa4 {[%emt 0:01:39]} (32. Qxa4 $15 {feels stronger.} Qd8 33. Qxa7 (33. Bxa7 $2 Ra5 $19)) 32... Nc5 $17 {[%emt 0:01:07]} (32... Nxg5 33. Rxa7 Qe6 34. Qb8+ Bf8 35. Ra8 $14) 33. Bxc5 {[%emt 0:00:29]} dxc5 {[%emt 0:00:05]} 34. Bc4 {[%emt 0:00:22]} Re7 {[%emt 0:01:37]} (34... Rxg5 $2 35. Qb8+ Bf8 36. Rxa7 Qf5+ 37. Ka2 $18) 35. Ka2 {[%emt 0:01:13]} Be5 {[%emt 0:00:15] Inhibits Qb8+.} 36. Ra6 {[%emt 0:00:58]} (36. f4 $17 Bxf4 37. Bxf7+ Rxf7 38. Rxf4) 36... Kg7 {[%emt 0:00:31]} 37. Qa3 {[%emt 0:01:03]} Qd2 {[%emt 0:00:43]} 38. f3 {[%emt 0:01:15]} (38. Rxa7 $17 Qxg5 39. Qxc5 Rxa7+ 40. Qxa7) 38... Qxg5 $19 {[%emt 0:00:49]} 39. Rxa7 {[%emt 0:00:31]} Bd6 {[%emt 0:00:39]} 40. Ra6 {[%emt 0:00:36]} (40. Rxe7 $142 Qxe7 41. Qb3) 40... Qd2 {[%emt 0:00:22]} 41. Qb3 {[%emt 0:04:21] White is weak on the dark squares} h5 {[%emt 0:07:21]} 42. Qb6 {[%emt 0:00:35]} Be5 {[%emt 0:01:18]} ({Better is} 42... Qf4 $1 $19 {[%cal Rf4c4]} 43. Bd5 (43. Qxd6 $2 Qxc4+ 44. Ka3 Re1 $19) 43... Be5 44. Qxc5 Rc7) 43. Bxf7 $11 {[%emt 0:00:34][%mdl 64] Decoy} Qd6 {[%emt 0:07:53]} (43... Rxf7 $2 44. Qxg6+ Kf8 45. Ra8+ (45. Qxh5 Qd5+ 46. Ka3 Qb7 $17) 45... Ke7 46. Ra7+ $18 (46. Qxh5 $2 Qd5+ 47. Kb1 Qxa8 $19) (46. Qxh5 $2 Qd5+ 47. Kb1 Qxa8 $19)) 44. Qb5 {[%emt 0:16:57]} Qb8 {[%emt 0:01:20]} 45. Qxb8 {[%emt 0:04:06]} Bxb8 {[%emt 0:00:09]} 46. Bxg6 {[%emt 0:00:05][%mdl 4096] Endgame KRB-KRB} h4 {[%emt 0:00:20] Threatens to win with ...h3.} 47. Bf5 {[%emt 0:00:20]} Ra7 {[%emt 0:00:14]} (47... Re5 $5 {[%cal Re5f5]} 48. Bc8 Re3 $11) 48. Rxa7+ {[%emt 0:00:05]} Bxa7 $14 {[%emt 0:00:03] KB-KB} 49. Kb3 {[%emt 0:00:31]} Kf6 {[%emt 0:00:12]} 50. Bg4 {[%emt 0:00:18]} Bb8 {[%emt 0:05:01]} 51. Kc4 {[%emt 0:00:11]} Bd6 {[%emt 0:00:09]} 52. Kd5 {[%emt 0:00:09]} Bf8 {[%emt 0:00:06]} 53. f4 {[%emt 0:00:06]} Be7 {[%emt 0:00:05]} 54. Bh3 {[%emt 0:01:31]} Bf8 {[%emt 0:00:05]} 55. Kc6 {[%emt 0:01:23]} Be7 {[%emt 0:00:13]} 56. Kb5 {[%emt 0:00:40]} Bd6 {[%emt 0:00:14]} 57. b3 {[%emt 0:00:53]} Kg6 {[%emt 0:00:50]} 58. f5+ {[%emt 0:01:36]} Kg5 {[%emt 0:00:34]} 59. b4 {[%emt 0:02:35]} cxb4 {[%emt 0:00:13]} 60. cxb4 {[%emt 0:00:02]} Be7 {[%emt 0:01:39]} (60... Kf4 $1 $11 {keeps the balance.}) 61. Kc4 $16 {[%emt 0:01:27] White wants to mate with b5.} Kf4 $2 {[%emt 0:00:08][%mdl 8192]} (61... Kf6 $16) 62. b5 {[%emt 0:00:15] White threatens b6 and mate.} Kg3 {[%emt 0:00:04] [#]} 63. b6 $1 {[%emt 0:01:09]} Kxh3 {[%emt 0:00:08] [#] KB-KPP} 64. b7 $2 {[%emt 0:00:05]} (64. Kd5 $1 {mates} Bd8 65. b7 Bc7 66. f6 Kg2 67. f7 h3 68. f8=Q (68. f8=R h2 $11) 68... h2 69. Qg7+ (69. b8=B Bxb8 70. Qh8 h1=Q $11) 69... Kf1 70. Qxc7) 64... Bd6 $14 {[%emt 0:00:07]} 65. f6 {[%emt 0:01:06] Intending Kd5 and mate.} Kg2 {[%emt 0:00:08] [#]} 66. Kd5 $2 {[%emt 0:00:21]} (66. f7 $1 $18 {[%cal Rf7f8]} h3 67. f8=Q {[%mdl 64] Deflection, Promotion} (67. Kd5 Bg3 $11) 67... Bxf8 68. b8=Q (68. b8=B {gets mated.} Be7 69. Be5 Bh4 70. Kb5 Bg3 71. Bf6 h2 72. Bd4 h1=Q 73. Kc5 Qf1 74. Bc3 Qf5+ 75. Kc4 Qe6+ 76. Kc5 Bd6+ 77. Kb5 Qd5+ 78. Ka6 Qc4+ 79. Ka7 Qxc3 80. Kb6 Be5 81. Kb5 Bd4 82. Ka4 Qc4+ 83. Ka3 Qb5 84. Ka2 Qb2#)) 66... Bg3 $11 {[%emt 0:00:06] The position is equal.} 67. f7 {[%emt 0:00:58]} h3 {[%emt 0:00:05]} 68. f8=Q {[%emt 0:00:06] Ke4 would kill now. The board is on fire.} (68. Ke4 $5 h2 $8 69. f8=Q $11 (69. f8=R $2 {is the wrong capture.} h1=Q $19)) 68... h2 {[%emt 0:00:03]} 69. Qg7 {[%emt 0:01:42]} h1=Q {[%emt 0:00:10]} 70. b8=Q {[%emt 0:00:29]} Kf2+ {[%emt 0:00:13]} 71. Kc4 {[%emt 0:00:51]} Qc6+ {[%emt 0:17:38] What a bad dream for Black.   Weighted Error Value: White=0.23 (precise) /Black=0.24 (precise)} 1/2-1/2